bitfinex/quotes_ETHUSD_20251217
["timestamp","ask_amount","ask_price","bid_price","bid_amount"]
[1766001604207,0.001,2826.8,2825.9,2.2333]
[1766001604360,0.001,2826.8,2825.9,2.09098]
[1766001604686,0.46438023,2826.7,2825.4,1.03038023]
[1766001604888,5.1099,2826.6,2825.4,2.18663014]
[1766001605106,2.3139,2825.6,2824.9,6.67427169]
[1766001605285,2.3139,2825.6,2824.7,2.6459]
[1766001605286,0.001,2825.7,2824.7,1.03038023]
[1766001605482,2.3139,2825.6,2824.8,0.77046519]
[1766001605705,2.3139,2825.6,2824.3,0.002]
[1766001605706,2.3139,2825.6,2824.6,0.566]
[1766001605902,2.3139,2825.6,2824.5,2.6459]
[1766001605903,5.1099,2825.6,2824.5,2.6459]
[1766001606066,0.001,2825.7,2824.8,2.6459]
[1766001606286,5.1099,2825.6,2824.7,0.46438023]
[1766001606481,5.1099,2825.6,2824.8,4.8792]
[1766001606713,0.001,2825.7,2824.7,0.46438023]
[1766001607019,0.001,2825.7,2824.6,0.46438023]
[1766001607175,0.001,2825.7,2824.7,0.59095802]
[1766001607503,5.1099,2825.6,2824.7,0.59095802]
[1766001607868,5.1099,2825.6,2824.8,0.03540073]
[1766001608127,2.796,2825.6,2824.7,0.59095802]
[1766001608301,0.001,2825.7,2824.7,0.59095802]
[1766001608609,5.1109,2826.8,2825.3,0.405504]
[1766001608807,5.1099,2826.7,2825.8,2.6459]
[1766001609096,5.1099,2826.7,2825.9,0.46438023]
[1766001609297,5.1099,2826.7,2825.9,4.8792]
[1766001610141,5.1099,2826.7,2825.9,4.8915]
[1766001610314,5.1099,2826.7,2825.9,0.8894727]
[1766001610505,0.001,2826.8,2825.4,0.46438023]
[1766001610805,3.9441113,2826.8,2825.3,2.932378]
[1766001611005,0.405504,2826.4,2825.3,2.932378]
[1766001611317,0.405504,2826.1,2824.2,2.2588]
[1766001611529,0.86988423,2825.9,2824.2,2.2588]
[1766001611744,2.747504,2825.9,2824.5,2.7168]
[1766001612045,2.747504,2825.9,2824.3,3.54265215]
[1766001612046,0.405504,2825.9,2824.4,2.7168]
[1766001612243,0.46438023,2825.8,2824.8,0.002]
[1766001612545,4.9013,2826.0,2824.8,0.002]
[1766001612750,0.46438023,2825.7,2824.8,0.002]
[1766001612922,0.405504,2826.1,2824.8,0.002]
[1766001613110,0.46438023,2825.7,2824.8,0.002]
[1766001613304,0.46438023,2825.8,2824.8,0.002]
[1766001613505,2.5593,2825.9,2824.8,0.002]
[1766001613734,2.5593,2825.3,2824.8,0.002]
[1766001613945,4.9013,2825.1,2824.8,0.002]
[1766001614143,2.5593,2825.1,2824.8,0.002]
[1766001614346,2.5593,2825.5,2824.8,0.002]
[1766001614559,0.34291842,2825.8,2824.8,0.002]
[1766001614712,2.5593,2825.6,2824.9,2.2588]
[1766001615114,4.9013,2825.6,2824.9,2.2588]
[1766001615645,2.342,2825.3,2824.8,0.002]
[1766001615834,4.9013,2825.0,2824.4,2.72318023]
[1766001616426,4.9013,2825.3,2824.4,2.72318023]
[1766001616646,4.9013,2825.3,2824.5,0.54419802]
[1766001616850,2.5593,2825.2,2824.5,0.54419802]
[1766001617039,4.9013,2825.2,2824.5,0.54419802]
[1766001617529,0.405504,2825.4,2824.3,0.002]
[1766001617728,2.5593,2824.8,2824.0,4.86168]
[1766001617931,2.5593,2824.6,2824.0,4.86168]
[1766001618120,2.5593,2824.8,2824.0,5.573728]
[1766001618319,4.9013,2824.5,2824.0,4.86168]
[1766001618518,0.405504,2825.3,2824.0,7.12048]
[1766001618519,2.342,2824.9,2824.0,7.12048]
[1766001618737,2.5593,2824.8,2824.0,7.12048]
[1766001619712,0.405504,2825.5,2824.1,4.9756]
[1766001619916,2.5593,2824.9,2824.1,5.959328]
[1766001620442,2.5593,2824.9,2824.2,2.2588]
[1766001620853,2.5593,2824.9,2824.5,0.002]
[1766001621063,2.342,2824.9,2824.5,0.002]
[1766001621413,4.9013,2824.9,2824.5,0.002]
[1766001621641,4.9013,2824.8,2824.5,0.002]
[1766001622042,2.342,2824.8,2824.5,0.002]
[1766001622254,2.5593,2824.9,2824.5,0.002]
[1766001622564,0.46438023,2825.6,2824.5,0.002]
[1766001622565,4.9013,2825.6,2824.5,0.002]
[1766001622715,0.46438023,2825.5,2824.0,7.12048]
[1766001622915,0.405504,2825.5,2824.0,7.12048]
[1766001623120,0.405504,2825.5,2824.0,4.86168]
[1766001623356,0.46438023,2825.1,2824.0,4.86168]
[1766001623717,0.86988423,2825.6,2824.0,4.86168]
[1766001623912,4.00379178,2825.4,2824.0,4.86168]
[1766001624118,4.9013,2824.9,2824.0,4.86168]
[1766001624345,4.9013,2825.3,2824.0,4.86168]
[1766001624541,2.5593,2824.8,2824.0,4.86168]
[1766001624750,2.5593,2824.6,2824.0,4.86168]
[1766001624930,4.9013,2824.6,2824.0,4.86168]
[1766001625263,4.9013,2824.9,2824.1,2.2588]
[1766001625757,4.9013,2824.9,2824.2,2.2588]
[1766001626055,0.405504,2825.5,2824.0,8.104208]
[1766001626361,0.51042075,2825.6,2824.0,8.104208]
[1766001626362,2.5593,2825.0,2824.0,4.86168]
[1766001626523,2.342,2824.7,2824.0,4.86168]
[1766001626722,4.9013,2825.5,2824.2,4.9756]
[1766001627039,0.001,2825.9,2824.6,9.69359977]
[1766001627239,4.9013,2826.5,2824.8,0.405504]
[1766001627440,4.9013,2826.5,2825.5,2.7168]
[1766001627624,4.9013,2826.4,2825.6,2.2588]
[1766001628034,2.342,2826.4,2825.6,2.2588]
[1766001628273,2.7935,2826.3,2825.6,2.2588]
[1766001628820,2.7935,2826.3,2824.9,4.57024994]
[1766001628821,2.5762,2826.3,2824.9,0.46438023]
[1766001629027,2.342,2825.8,2824.6,2.72318023]
[1766001629323,4.9013,2825.4,2824.6,2.72318023]
[1766001629548,4.9013,2825.4,2824.7,0.54399802]
[1766001629860,2.5593,2825.4,2824.8,0.46438023]
[1766001630463,2.5593,2825.4,2824.7,0.54399802]
[1766001630464,4.9013,2825.4,2824.7,0.54399802]
[1766001630621,2.5593,2825.3,2824.6,0.46438023]
[1766001631549,4.9013,2825.1,2824.6,0.46438023]
[1766001631921,4.9013,2825.1,2824.5,0.46438023]
[1766001632145,4.9013,2825.1,2824.3,2.2588]
[1766001632344,4.9013,2825.1,2824.4,0.22588]
[1766001632549,4.9013,2825.1,2824.4,0.69026023]
[1766001633246,4.9013,2825.1,2824.4,2.94906023]
[1766001633453,2.5593,2825.1,2824.4,2.94906023]
[1766001633834,2.5593,2825.3,2824.4,2.94906023]
[1766001635250,4.9013,2825.3,2824.4,2.94906023]
[1766001635458,0.001,2825.9,2823.6,0.002]
[1766001635459,2.342,2824.7,2823.6,0.002]
[1766001635636,1.8857,2824.3,2823.6,0.002]
[1766001635832,2.342,2824.1,2823.6,0.002]
[1766001636076,2.342,2824.8,2823.8,4.9756]
[1766001636277,2.342,2824.8,2824.0,4.9756]
[1766001636424,0.46438023,2825.0,2824.1,4.9756]
[1766001636765,2.342,2824.9,2824.1,4.9756]
[1766001637263,1.8839,2824.8,2823.7,2.72518023]
[1766001637428,0.18839,2824.7,2823.8,5.24831802]
[1766001637831,2.07039,2824.7,2823.8,5.24831802]
[1766001638133,2.342,2824.5,2823.7,0.002]
[1766001638359,1.882,2824.4,2823.7,0.002]
[1766001638678,2.342,2824.2,2823.7,0.002]
[1766001638830,2.342,2823.9,2823.6,0.002]
[1766001639554,0.69881075,2824.7,2823.6,0.002]
[1766001639555,1.8743,2824.6,2823.6,0.002]
[1766001639723,2.342,2824.3,2823.6,0.002]
[1766001639959,2.342,2824.2,2823.6,0.002]
[1766001640959,3.01155328,2824.5,2823.6,2.5033]
[1766001641255,2.3363,2824.3,2823.6,0.002]
[1766001641831,2.54415328,2824.5,2823.6,2.1871]
[1766001642031,0.25441533,2824.4,2823.7,2.5013]
[1766001642233,0.25441533,2824.4,2823.7,4.6864]
[1766001642434,0.46438023,2824.5,2823.7,4.6864]
[1766001642628,0.46438023,2824.5,2823.6,0.002]
[1766001642853,2.3363,2824.4,2823.7,2.1851]
[1766001643570,2.3363,2824.4,2823.6,0.002]
[1766001644166,2.3363,2824.2,2823.6,0.002]
[1766001644459,0.42017,2824.1,2823.6,4.6884]
[1766001644632,2.3363,2824.3,2823.6,2.5033]
[1766001645946,0.46438023,2824.5,2823.6,2.5033]
[1766001646143,2.3363,2825.1,2824.0,4.6864]
[1766001646442,2.3363,2825.1,2823.8,0.46438023]
[1766001646443,2.3363,2825.1,2824.1,5.15504]
[1766001646645,2.80068023,2825.1,2824.1,5.15504]
[1766001648350,2.3363,2825.1,2824.4,2.5013]
[1766001648552,2.80068023,2825.1,2824.2,2.5013]
[1766001648762,2.3373,2824.8,2824.1,2.65374]
[1766001649063,2.3373,2824.8,2823.9,2.5013]
[1766001649265,2.3373,2824.8,2823.9,4.6864]
[1766001649640,2.3373,2824.8,2824.0,2.5013]
[1766001651368,2.3363,2824.7,2824.0,2.5013]
[1766001652868,4.1872,2824.7,2823.7,0.46438023]
[1766001653057,2.3363,2824.6,2823.7,2.96568023]
[1766001653260,2.3363,2824.6,2823.7,5.15078023]
[1766001653548,2.3363,2824.6,2823.6,0.002]
[1766001653754,2.3363,2824.3,2823.6,0.002]
[1766001653962,2.3363,2824.2,2823.6,0.002]
[1766001654841,0.001,2824.8,2823.8,2.5013]
[1766001655077,0.001,2824.8,2823.7,0.46438023]
[1766001655078,0.001,2824.8,2824.2,4.6864]
[1766001656152,0.001,2824.8,2824.6,2.5013]
[1766001656369,0.001,2824.8,2824.6,4.6864]
[1766001656744,0.001,2824.8,2824.3,4.6864]
[1766001656967,0.001,2824.8,2823.9,3.54108809]
[1766001656968,2.3373,2824.8,2823.9,3.54108809]
[1766001657146,2.3373,2824.8,2823.8,4.00562904]
[1766001657468,2.3373,2824.8,2824.1,2.5013]
[1766001657671,0.23373,2824.7,2824.0,2.1851]
[1766001657971,2.57003,2824.7,2824.0,2.1851]
[1766001658345,2.57003,2824.7,2823.9,2.5013]
[1766001658671,1.8399,2824.6,2823.7,2.64948023]
[1766001658857,2.3363,2824.5,2823.8,0.97965825]
[1766001659267,2.3363,2824.5,2823.8,0.51527802]
[1766001660161,2.3363,2824.5,2823.6,2.5033]
[1766001660356,4.1748,2824.1,2823.6,0.002]
[1766001660554,4.1748,2824.1,2823.2,0.002]
[1766001660555,2.3363,2823.6,2823.1,0.002]
[1766001660773,2.3363,2823.3,2823.1,0.002]
[1766001660946,0.41634,2823.2,2822.8,4.6884]
[1766001661143,2.3363,2823.6,2822.8,4.6884]
[1766001661546,0.04604052,2824.2,2822.8,2.1871]
[1766001661778,2.3363,2824.0,2823.1,2.5013]
[1766001661979,2.80068023,2823.8,2823.1,2.5013]
[1766001662377,1.86974052,2824.2,2823.1,2.1851]
[1766001662679,2.80068023,2824.5,2823.5,2.5013]
[1766001662880,2.3363,2824.2,2823.5,2.5013]
[1766001663050,2.80068023,2824.2,2823.5,2.5013]
[1766001663971,2.80068023,2824.2,2823.4,2.1851]
[1766001665354,2.3363,2824.0,2822.8,0.46638023]
[1766001665553,2.3363,2823.7,2822.9,0.46438023]
[1766001665759,2.3363,2823.6,2822.9,0.46438023]
[1766001667385,0.4156,2823.9,2823.0,4.6864]
[1766001667555,2.3363,2824.2,2822.9,0.002]
[1766001667757,2.3363,2824.1,2823.2,2.5013]
[1766001667979,2.3363,2824.1,2823.2,4.6864]
[1766001670013,2.2929,2824.3,2823.4,4.8084]
[1766001670365,0.04604052,2824.2,2823.0,2.2434]
[1766001670709,1.8096,2823.8,2823.0,2.565]
[1766001670887,0.04604052,2824.0,2822.0,0.002]
[1766001670888,2.654504,2823.4,2822.0,0.002]
[1766001671087,2.249,2823.1,2822.0,0.002]
[1766001671381,2.249,2823.1,2822.2,2.4996]
[1766001671382,2.249,2822.9,2822.2,2.4996]
[1766001671580,0.7753,2823.1,2822.2,2.4996]
[1766001671581,2.249,2823.2,2822.3,2.4976]
[1766001671758,2.249,2823.2,2822.4,2.4976]
[1766001671956,2.249,2823.2,2822.2,0.002]
[1766001672163,2.249,2823.0,2822.2,0.002]
[1766001672367,2.249,2823.0,2822.2,0.25236]
[1766001672986,2.249,2822.9,2822.2,0.002]
[1766001675468,2.29504052,2822.7,2822.2,0.002]
[1766001676388,0.04604052,2822.5,2822.2,0.002]
[1766001677690,2.249,2822.6,2822.2,0.002]
[1766001677863,0.7753,2822.8,2822.2,0.002]
[1766001677864,0.04604052,2823.2,2822.5,2.2939]
[1766001678064,0.04604052,2823.2,2822.8,2.4976]
[1766001680899,0.04604052,2823.2,2822.7,2.2939]
[1766001681075,0.04604052,2823.2,2822.7,4.7915]
[1766001681481,0.04604052,2823.2,2822.7,2.2939]
[1766001681679,0.04604052,2823.2,2822.8,2.4976]
[1766001681883,0.04604052,2823.4,2823.1,4.7915]
[1766001682206,0.04604052,2823.4,2823.1,2.4976]
[1766001683466,0.04604052,2823.4,2823.2,2.4976]
[1766001683696,0.04704052,2823.6,2822.9,4.7915]
[1766001683901,0.04604052,2823.0,2822.2,0.46638023]
[1766001684077,0.04604052,2823.0,2822.1,0.002]
[1766001684284,0.46438023,2822.8,2821.7,0.002]
[1766001684478,2.249,2822.4,2821.7,0.002]
[1766001684684,2.249,2822.4,2821.7,0.48155]
[1766001684978,0.51042075,2823.0,2821.7,2.97915]
[1766001685182,2.71338023,2822.9,2822.0,4.7915]
[1766001685383,2.249,2822.8,2822.0,4.7915]
[1766001685999,2.249,2822.7,2821.8,2.4976]
[1766001686187,2.29504052,2822.7,2821.9,2.795515]
[1766001686508,2.29504052,2822.7,2822.0,2.4976]
[1766001686795,2.29504052,2822.7,2821.9,0.297915]
[1766001687013,2.29504052,2822.7,2821.9,2.4976]
[1766001687580,2.29504052,2822.7,2821.7,0.002]
[1766001687581,0.04604052,2822.5,2821.7,0.002]
[1766001687901,2.249,2822.4,2821.7,0.002]
[1766001689302,2.249,2822.4,2821.7,2.4996]
[1766001689502,2.249,2822.4,2821.7,4.7935]
[1766001689800,2.249,2822.4,2821.7,5.62767106]
[1766001690034,0.04604052,2822.7,2822.0,2.4976]
[1766001690313,0.04604052,2822.7,2821.7,0.83617106]
[1766001690314,0.04604052,2823.0,2822.4,2.4976]
[1766001690475,0.04604052,2823.0,2822.6,2.2939]
[1766001690675,2.249,2822.9,2821.8,0.46438023]
[1766001690872,2.249,2822.9,2822.1,2.4976]
[1766001691078,2.249,2822.9,2822.2,3.10171768]
[1766001691288,0.04604052,2823.0,2822.2,2.89801768]
[1766001691619,0.04604052,2823.0,2822.7,2.4976]
[1766001691816,4.052e-05,2823.0,2822.7,2.2939]
[1766001692115,0.04604052,2823.2,2822.9,2.4976]
[1766001692489,0.04604052,2823.2,2822.7,2.4976]
[1766001692717,0.04604052,2823.4,2822.9,4.7915]
[1766001693288,0.04604052,2823.4,2822.8,0.24976]
[1766001693623,0.04704052,2823.6,2823.1,2.2939]
[1766001693920,0.04704052,2823.6,2822.8,2.54366]
[1766001694118,0.04704052,2823.6,2822.8,0.24976]
[1766001694420,2.249,2823.5,2822.8,2.74736]
[1766001694596,0.04704052,2823.6,2822.9,0.274736]
[1766001694797,0.001,2823.6,2823.2,2.2939]
[1766001695125,0.867,2824.9,2823.6,2.96198023]
[1766001695319,0.04604052,2825.4,2824.2,2.4976]
[1766001695320,0.001,2824.8,2824.2,2.4976]
[1766001695625,0.001,2824.8,2823.7,0.566]
[1766001695626,0.04604052,2825.4,2824.6,2.4976]
[1766001695820,2.249,2825.3,2824.3,2.4976]
[1766001696118,0.8701,2825.0,2824.0,2.4976]
[1766001696338,2.249,2824.6,2823.7,2.4976]
[1766001696927,2.249,2824.6,2823.4,0.46438023]
[1766001696928,0.8702,2824.4,2823.4,0.46438023]
[1766001697135,2.249,2824.1,2823.3,0.46438023]
[1766001697342,2.56552405,2824.1,2823.3,0.46438023]
[1766001698301,2.56552405,2824.1,2823.3,2.4976]
[1766001698541,0.04604052,2824.2,2823.4,2.96198023]
[1766001698830,0.04604052,2824.2,2823.4,5.25588023]
[1766001699398,2.249,2824.4,2823.5,2.4976]
[1766001699599,2.249,2824.4,2823.5,4.7915]
[1766001701127,2.249,2824.4,2823.6,2.5051]
[1766001701302,2.56094,2824.4,2823.6,2.5051]
[1766001701733,0.8709,2824.3,2823.3,2.96948023]
[1766001701935,2.2621,2824.2,2823.4,0.46438023]
[1766001702301,2.2621,2824.0,2823.1,0.46438023]
[1766001702899,2.30814052,2824.2,2823.3,2.1831]
[1766001703216,2.49291405,2824.1,2823.3,2.64748023]
[1766001704136,0.23081405,2824.1,2823.4,2.5051]
[1766001704441,2.2621,2824.1,2822.6,2.5051]
[1766001704611,2.2621,2823.8,2822.8,3.54257692]
[1766001704799,2.2621,2823.8,2823.0,0.46438023]
[1766001705003,2.2621,2823.8,2823.0,5.15258023]
[1766001705734,2.2621,2823.8,2823.1,2.5051]
[1766001705928,2.2621,2824.1,2823.2,2.21852079]
[1766001706104,2.2621,2824.1,2823.4,2.5051]
[1766001706421,0.8712,2824.0,2823.1,0.86950001]
[1766001706624,2.2621,2823.9,2822.9,2.96948023]
[1766001706922,2.2621,2823.9,2823.1,0.46438023]
[1766001707118,2.57543,2823.9,2823.1,0.46438023]
[1766001707323,2.2621,2823.8,2823.1,0.46438023]
[1766001708902,2.30814052,2823.8,2823.1,0.46438023]
[1766001709103,2.30814052,2823.8,2822.9,2.64748023]
[1766001709406,2.30814052,2823.8,2823.1,0.46438023]
[1766001710740,2.66202162,2823.8,2823.1,0.46438023]
[1766001711721,2.66202162,2823.8,2823.0,2.5071]
[1766001712232,2.2621,2823.7,2823.0,2.5071]
[1766001712445,2.2621,2823.7,2823.0,0.002]
[1766001716757,1.27162162,2823.8,2823.0,0.002]
[1766001716758,0.8721,2823.6,2823.0,0.002]
[1766001716940,2.2621,2823.3,2822.6,0.46438023]
[1766001717238,2.2621,2823.3,2822.7,2.5051]
[1766001717411,2.2621,2823.3,2822.8,0.46438023]
[1766001717816,2.30814052,2824.0,2822.8,3.54251539]
[1766001718038,0.8702,2823.8,2822.9,2.5051]
[1766001718239,0.8702,2823.8,2822.7,0.46438023]
[1766001718240,2.2621,2823.5,2822.7,0.46438023]
[1766001718443,2.2621,2823.4,2822.7,0.46438023]
[1766001718862,2.30814052,2823.4,2822.3,0.002]
[1766001719057,0.04604052,2823.1,2822.3,0.002]
[1766001719948,3.1285,2822.6,2821.9,0.002]
[1766001720243,2.2621,2822.3,2821.9,0.002]
[1766001721140,2.57955405,2822.6,2821.9,0.002]
[1766001721534,2.2621,2822.5,2821.9,0.002]
[1766001722247,0.8621,2822.2,2821.7,0.002]
[1766001722416,0.8601,2821.9,2821.5,0.002]
[1766001722618,0.8537,2822.4,2821.5,0.002]
[1766001722831,2.2621,2822.2,2821.5,0.002]
[1766001723031,0.31158,2822.1,2821.5,0.002]
[1766001723329,2.57368,2822.1,2821.5,0.002]
[1766001723525,2.2621,2822.1,2821.5,0.002]
[1766001724852,2.2621,2821.9,2821.5,0.002]
[1766001726748,0.837,2822.3,2821.5,0.002]
[1766001726949,0.04604052,2822.5,2821.9,2.5051]
[1766001727153,2.2621,2822.4,2821.6,2.5051]
[1766001727347,2.2621,2822.4,2821.7,2.75581]
[1766001727654,2.2621,2822.3,2821.7,0.25071]
[1766001728024,2.2621,2822.3,2821.5,0.002]
[1766001728749,0.04604052,2822.5,2821.7,2.5051]
[1766001729060,0.04604052,2822.5,2821.8,4.6882]
[1766001729452,2.2621,2822.4,2821.6,2.2714]
[1766001729654,2.2621,2822.4,2821.7,2.4206]
[1766001730177,1.13470405,2822.4,2821.5,0.002]
[1766001730461,3.051,2822.4,2821.5,0.002]
[1766001730677,2.39174052,2822.5,2821.7,2.4206]
[1766001731240,2.3457,2822.4,2821.7,2.4206]
[1766001731435,2.3457,2822.1,2821.5,0.002]
[1766001732238,2.3457,2821.9,2821.5,0.002]
[1766001734278,2.3457,2821.7,2821.5,0.002]
[1766001734563,2.3457,2821.5,2821.1,0.002]
[1766001734723,2.3457,2821.4,2821.1,0.002]
[1766001735661,3.138,2821.3,2820.7,0.002]
[1766001735859,2.3457,2821.1,2820.7,0.002]
[1766001736053,2.65894,2821.1,2820.7,0.002]
[1766001736248,2.3457,2821.1,2820.7,0.002]
[1766001737162,0.04604052,2821.6,2820.7,0.002]
[1766001737326,2.3457,2821.3,2820.7,0.002]
[1766001737742,2.3457,2821.2,2820.7,0.002]
[1766001737942,0.7775,2821.0,2820.6,0.002]
[1766001738130,2.3457,2820.8,2820.0,0.002]
[1766001738457,2.3457,2820.6,2820.0,0.002]
[1766001739843,2.3457,2821.1,2820.2,2.3456]
[1766001740043,2.3457,2821.1,2820.1,2.3668]
[1766001740249,2.3457,2821.1,2820.0,0.46638023]
[1766001740772,2.3457,2821.1,2820.6,0.002]
[1766001740979,2.58487405,2821.1,2820.6,0.002]
[1766001741180,2.3457,2820.9,2820.0,0.002]
[1766001741334,2.3457,2820.9,2820.0,2.3688]
[1766001741656,2.3457,2820.9,2820.1,2.3456]
[1766001741963,2.3457,2820.9,2820.1,2.86367802]
[1766001742176,2.39174052,2821.2,2820.4,2.3456]
[1766001742375,2.39174052,2821.2,2820.1,0.51807802]
[1766001742376,0.7558,2821.1,2820.1,0.51807802]
[1766001742550,2.3457,2821.0,2820.2,0.46438023]
[1766001742739,2.3457,2821.0,2820.2,2.80998023]
[1766001742934,2.3457,2821.0,2820.3,0.56948582]
[1766001743359,0.04604052,2821.2,2820.3,0.56948582]
[1766001743535,0.04604052,2821.2,2820.4,4.7124]
[1766001743951,2.39174052,2821.2,2820.4,4.7124]
[1766001744351,0.79524052,2821.2,2820.3,0.56948582]
[1766001744551,0.79524052,2821.2,2820.2,0.46438023]
[1766001744552,2.3457,2821.1,2820.2,5.17678023]
[1766001744754,2.3457,2821.1,2820.4,4.7124]
[1766001745536,2.3457,2821.1,2820.4,2.3456]
[1766001745736,2.3457,2821.1,2820.2,0.46438023]
[1766001746049,2.3457,2820.8,2820.2,0.46438023]
[1766001746247,2.65454,2820.8,2820.0,0.002]
[1766001746553,2.3457,2820.7,2820.0,2.3476]
[1766001747158,0.405504,2821.1,2820.2,2.3456]
[1766001747355,2.3457,2820.7,2820.0,0.002]
[1766001747540,2.39174052,2820.6,2820.0,0.002]
[1766001747745,2.58487405,2820.5,2820.0,0.002]
[1766001748568,2.39174052,2820.6,2820.0,0.002]
[1766001749249,2.3457,2820.3,2820.0,0.002]
[1766001749568,2.3467,2821.9,2820.2,2.3456]
[1766001749755,2.3467,2821.9,2820.0,10.78501667]
[1766001749756,2.3467,2821.9,2821.1,2.3456]
[1766001749965,2.3467,2821.9,2820.4,0.46438023]
[1766001749966,2.58137,2821.9,2821.2,4.7124]
[1766001750145,0.23567,2821.9,2821.2,2.3668]
[1766001750345,0.001,2821.9,2821.3,2.3456]
[1766001751080,2.39174052,2823.0,2821.6,2.3668]
[1766001751257,2.3457,2822.8,2821.8,2.3668]
[1766001751454,2.3457,2822.7,2821.8,2.3668]
[1766001751654,0.04604052,2823.0,2821.5,0.46438023]
[1766001751860,2.3457,2822.7,2821.4,2.3668]
[1766001752062,0.7281,2822.1,2821.0,2.3668]
[1766001752274,0.7281,2821.7,2820.8,2.80998023]
[1766001752603,2.3457,2821.6,2820.8,2.80998023]
[1766001752741,2.3457,2821.5,2820.8,0.46438023]
[1766001752944,2.3457,2821.9,2820.9,4.7124]
[1766001753142,2.3457,2821.9,2821.0,2.3456]
[1766001753374,2.3457,2821.9,2821.0,4.7124]
[1766001753569,0.7252,2821.8,2820.8,0.74749825]
[1766001753778,2.3457,2821.7,2820.8,0.28311802]
[1766001754069,0.30709,2821.7,2820.9,2.3668]
[1766001754243,2.751204,2822.0,2821.0,2.3456]
[1766001754446,0.46438023,2821.9,2821.0,4.7124]
[1766001755459,2.81008023,2821.8,2821.0,2.3456]
[1766001755661,2.81008023,2821.8,2819.6,9.71364928]
[1766001755662,2.751204,2821.0,2820.0,0.002]
[1766001755861,2.3457,2820.9,2820.0,0.002]
[1766001756064,2.3457,2820.9,2820.1,2.3456]
[1766001756960,2.3457,2820.9,2820.0,0.002]
[1766001757179,2.3457,2820.7,2820.0,0.002]
[1766001758586,2.81008023,2820.7,2820.0,0.002]
[1766001759192,0.04604052,2820.9,2820.2,4.7124]
[1766001759350,0.04604052,2820.9,2820.3,2.3456]
[1766001759750,2.39174052,2821.1,2820.3,2.3668]
[1766001759987,2.39174052,2821.1,2820.4,2.58228]
[1766001760188,0.04704052,2821.6,2820.6,2.3456]
[1766001760373,0.04704052,2821.6,2821.0,2.3456]
[1766001760554,0.001,2821.6,2821.0,2.3456]
[1766001760751,0.04604052,2822.3,2821.2,4.4953]
[1766001760954,0.04604052,2822.3,2821.3,0.45307472]
[1766001761154,0.04604052,2822.3,2820.9,0.405504]
[1766001761381,0.04604052,2822.3,2821.5,2.3103]
[1766001761594,0.04604052,2822.5,2821.8,2.3103]
[1766001764157,2.22794052,2822.5,2821.8,2.3103]
[1766001764357,2.22794052,2822.5,2821.5,2.3103]
[1766001764558,2.45533862,2822.5,2821.5,2.75983]
[1766001765091,2.45533862,2822.5,2821.5,2.3103]
[1766001765385,2.45633862,2822.5,2821.5,2.3103]
[1766001766958,2.45633862,2822.5,2821.1,2.185]
[1766001767275,2.45633862,2822.5,2821.2,2.3103]
[1766001767814,2.45633862,2822.5,2821.3,2.3103]
[1766001768022,2.1819,2822.3,2821.3,3.16073906]
[1766001768701,0.001,2822.5,2821.3,7.93935628]
[1766001769007,0.04704052,2823.1,2822.3,2.185]
[1766001769160,0.001,2823.1,2822.8,2.3103]
[1766001770384,0.001,2823.1,2822.2,2.3103]
[1766001770571,0.001,2823.1,2822.3,0.44953]
[1766001770764,0.001,2823.1,2822.3,2.3103]
[1766001772696,0.001,2823.1,2822.1,2.185]
[1766001772697,2.1819,2823.0,2822.1,2.185]
[1766001772870,2.1819,2823.0,2821.8,0.46438023]
[1766001773399,2.1819,2823.0,2821.7,4.4953]
[1766001773595,2.1819,2822.6,2821.4,2.3103]
[1766001773893,0.04604052,2822.7,2821.5,2.77468023]
[1766001773894,2.1819,2822.4,2821.5,2.77468023]
[1766001774266,2.1819,2822.4,2821.5,2.3103]
[1766001774696,2.1819,2822.4,2820.6,3.5452656]
[1766001774999,2.1819,2822.4,2821.2,0.46438023]
[1766001775167,2.1819,2822.4,2821.2,2.77468023]
[1766001775497,2.1819,2822.2,2821.2,2.3103]
[1766001776676,0.04604052,2822.1,2820.4,0.23668]
[1766001776900,0.46438023,2822.5,2820.5,7.09094132]
[1766001777067,2.22794052,2822.7,2821.1,2.185]
[1766001777396,2.22794052,2822.7,2821.0,0.971504]
[1766001777600,2.22794052,2822.7,2821.1,4.4953]
[1766001777796,0.26923208,2822.6,2821.5,2.3103]
[1766001778002,0.26923208,2822.6,2821.7,2.3103]
[1766001778399,2.45113208,2822.6,2821.7,2.3103]
[1766001780820,2.1819,2822.4,2821.0,0.971504]
[1766001781020,2.1819,2822.4,2821.2,2.3103]
[1766001781322,2.1819,2822.0,2820.8,4.4953]
[1766001781490,2.1819,2822.0,2820.9,2.3103]
[1766001781691,2.1819,2822.0,2821.0,2.3103]
[1766001782094,2.1819,2821.5,2820.1,2.3103]
[1766001782400,2.1819,2821.4,2820.1,2.3103]
[1766001782630,2.1819,2821.2,2820.1,2.76023]
[1766001783085,2.1819,2821.2,2820.2,2.3103]
[1766001783291,2.1819,2821.2,2820.3,2.3103]
[1766001783521,2.1819,2821.2,2820.4,2.3103]
[1766001784025,2.1819,2821.2,2820.2,2.3103]
[1766001784192,2.1819,2821.2,2820.3,2.804823]
[1766001784520,2.1819,2821.2,2820.1,0.44993]
[1766001784721,2.1819,2821.2,2820.1,2.76023]
[1766001786927,2.1819,2820.9,2819.9,0.002]
[1766001787125,2.1819,2820.9,2819.6,2.3103]
[1766001787935,2.1819,2820.9,2818.9,0.002]
[1766001787936,0.405504,2820.1,2818.9,0.002]